bitfinex/quotes_BTCUSD_20230901
["timestamp","ask_amount","ask_price","bid_price","bid_amount"]
[1693566173027,0.03006533,26033.0,26032.0,1.20499978]
[1693566173232,0.03006533,26033.0,26032.0,1.20493978]
[1693566173431,0.03006533,26033.0,26032.0,1.20529978]
[1693566173654,0.03006533,26033.0,26032.0,1.20415978]
[1693566173854,0.03006533,26033.0,26032.0,1.20133978]
[1693566174077,0.03006533,26033.0,26032.0,1.20763978]
[1693566174311,0.03006533,26033.0,26032.0,1.20487978]
[1693566174487,0.03006533,26033.0,26032.0,1.20355978]
[1693566174715,0.13347533,26035.0,26032.0,1.20325978]
[1693566174890,0.13347533,26035.0,26032.0,0.62326678]
[1693566175094,0.0225588,26034.0,26032.0,0.55798678]
[1693566175673,0.0225588,26034.0,26032.0,0.54398678]
[1693566176081,0.0225588,26034.0,26032.0,0.54598678]
[1693566176277,0.0225588,26034.0,26032.0,0.54398678]
[1693566176677,0.0225588,26034.0,26032.0,0.52698678]
[1693566176678,0.0235588,26034.0,26032.0,0.52698678]
[1693566177111,0.0235588,26034.0,26032.0,0.52798678]
[1693566177481,0.0235588,26034.0,26032.0,0.52698678]
[1693566177863,0.0255588,26034.0,26032.0,0.53798678]
[1693566185105,0.0255588,26034.0,26032.0,1.11419978]
[1693566185549,0.0255588,26034.0,26032.0,1.17911978]
[1693566185795,0.0255588,26034.0,26032.0,1.18049978]
[1693566185990,0.0255588,26034.0,26032.0,1.75683278]
[1693566186194,0.0255588,26034.0,26032.0,1.75875278]
[1693566186429,0.0255588,26034.0,26032.0,1.75881278]
[1693566186585,0.0255588,26034.0,26032.0,1.85091296]
[1693566186803,0.0255588,26034.0,26032.0,1.85133296]
[1693566187134,0.0255588,26034.0,26032.0,1.85163296]
[1693566187425,0.0255588,26034.0,26032.0,1.85133296]
[1693566188325,0.0255588,26034.0,26033.0,0.13504622]
[1693566188514,0.0255588,26034.0,26033.0,2.87136119]
[1693566188515,0.26595076,26034.0,26033.0,2.87136119]
[1693566188723,0.26595076,26034.0,26033.0,3.44707219]
[1693566188898,0.26595076,26034.0,26033.0,2.87022119]
[1693566189168,0.576059,26039.0,26035.0,0.06]
[1693566189403,0.1832,26044.0,26040.0,0.06]
[1693566189640,0.21551394,26043.0,26042.0,0.06]
[1693566189823,0.21551394,26043.0,26042.0,0.33273471]
[1693566190276,0.21551394,26043.0,26042.0,2.97923693]
[1693566190494,0.21551394,26045.0,26042.0,3.49245422]
[1693566190706,0.21551394,26045.0,26044.0,0.1179]
[1693566190950,0.21551394,26045.0,26044.0,0.50498678]
[1693566191143,0.21551394,26045.0,26044.0,0.52498678]
[1693566192078,0.21751394,26045.0,26044.0,0.54698678]
[1693566192506,0.21751394,26045.0,26044.0,1.65439485]
[1693566192729,0.21951394,26045.0,26044.0,1.66939485]
[1693566195500,0.21951394,26045.0,26044.0,1.76140596]
[1693566195501,0.004,26045.0,26044.0,1.76140596]
[1693566195860,0.004,26045.0,26044.0,1.64350596]
[1693566197711,0.004,26045.0,26044.0,1.78152263]
[1693566197845,0.004,26045.0,26044.0,1.39443585]
[1693566198045,0.004,26045.0,26044.0,1.76090025]
[1693566198266,0.004,26045.0,26044.0,1.30669625]
[1693566198475,0.004,26045.0,26044.0,1.66888845]
[1693566199506,0.004,26045.0,26044.0,1.71497836]
[1693566200127,0.004,26045.0,26044.0,1.4686018]
[1693566200629,0.004,26045.0,26044.0,1.33082049]
[1693566200856,0.004,26045.0,26044.0,0.67330989]
[1693566201294,0.004,26045.0,26044.0,0.28915202]
[1693566201510,0.004,26045.0,26044.0,0.18410658]
[1693566201915,0.004,26045.0,26044.0,0.32185289]
[1693566202116,0.004,26045.0,26044.0,0.13774631]
[1693566202568,0.004,26045.0,26044.0,0.32185289]
[1693566202694,0.004,26045.0,26043.0,0.28572461]
[1693566202901,0.004,26045.0,26043.0,0.67281139]
[1693566203504,0.002,26045.0,26043.0,0.67281139]
[1693566203708,0.004,26045.0,26043.0,0.68681139]
[1693566203914,0.002,26045.0,26043.0,0.014]
[1693566204082,0.004,26045.0,26044.0,0.09181316]
[1693566204386,0.004,26045.0,26043.0,0.026]
[1693566204592,0.004,26045.0,26043.0,0.1439]
[1693566204998,0.002,26045.0,26043.0,0.1299]
[1693566205198,0.002,26045.0,26044.0,0.09180741]
[1693566205518,0.002,26045.0,26043.0,0.1299]
[1693566205962,0.0199,26046.0,26043.0,0.92400323]
[1693566206103,0.0199,26046.0,26045.0,0.09180239]
[1693566208267,0.0209,26046.0,26045.0,0.09680239]
[1693566208698,0.0239,26046.0,26045.0,0.09780239]
[1693566211244,0.0239,26046.0,26045.0,0.006]
[1693566211588,0.23890878,26046.0,26045.0,0.09780239]
[1693566212197,0.23890878,26046.0,26045.0,0.006]
[1693566216499,0.23890878,26046.0,26045.0,0.09780239]
[1693566216707,0.23890878,26046.0,26045.0,0.006]
[1693566217479,0.23890878,26046.0,26045.0,0.09780239]
[1693566219881,0.23890878,26046.0,26045.0,0.006]
[1693566220082,0.23890878,26046.0,26045.0,0.09780239]
[1693566220283,0.23890878,26046.0,26045.0,1.2051626]
[1693566223454,0.23890878,26046.0,26045.0,0.82101948]
[1693566224041,0.23890878,26046.0,26045.0,0.09180239]
[1693566224239,0.23890878,26046.0,26045.0,0.22948253]
[1693566224489,0.23890878,26046.0,26045.0,0.09180239]
[1693566224665,0.23890878,26046.0,26045.0,0.08891062]
[1693566224873,0.23890878,26046.0,26043.0,1.38206623]
[1693566225061,0.21500878,26045.0,26044.0,0.45418497]
[1693566225940,0.21500878,26045.0,26044.0,0.07001918]
[1693566226382,0.21700878,26045.0,26044.0,0.08101918]
[1693566226935,0.21700878,26045.0,26044.0,0.011]
[1693566227138,0.21900878,26045.0,26044.0,0.02]
[1693566227341,0.21900878,26045.0,26043.0,1.670282]
[1693566227538,0.21500878,26044.0,26043.0,1.670282]
[1693566227763,0.21500878,26044.0,26043.0,1.114318]
[1693566228911,0.003,26044.0,26043.0,1.117318]
[1693566229117,0.21800878,26044.0,26043.0,1.117318]
[1693566230060,0.21800878,26044.0,26043.0,1.118318]
[1693566230475,0.21800878,26044.0,26043.0,1.117318]
[1693566230677,0.21800878,26044.0,26043.0,1.137318]
[1693566230871,0.22200878,26044.0,26043.0,1.138318]
[1693566231719,0.22200878,26044.0,26043.0,1.36845123]
[1693566232038,0.22200878,26044.0,26043.0,1.138318]
[1693566232640,0.22200878,26044.0,26043.0,1.55260307]
[1693566233250,0.22200878,26044.0,26043.0,1.32246984]
[1693566233471,0.22200878,26044.0,26043.0,1.36845123]
[1693566234075,0.22200878,26044.0,26043.0,1.43301123]
[1693566234303,0.22200878,26044.0,26043.0,1.43409123]
[1693566234610,0.22200878,26044.0,26043.0,1.204258]
[1693566234908,0.22200878,26044.0,26043.0,1.205458]
[1693566235115,0.22200878,26044.0,26043.0,1.752929]
[1693566235331,0.22200878,26044.0,26043.0,1.752989]
[1693566235534,0.22200878,26044.0,26043.0,1.754009]
[1693566235668,0.22200878,26044.0,26043.0,1.754069]
[1693566236090,0.22200878,26044.0,26043.0,1.751909]
[1693566236326,0.22200878,26044.0,26043.0,1.685489]
[1693566237258,0.22200878,26044.0,26043.0,1.138318]
[1693566237603,0.22200878,26044.0,26043.0,1.36890344]
[1693566237838,0.22200878,26044.0,26043.0,1.43400344]
[1693566238013,0.22200878,26044.0,26043.0,1.36890344]
[1693566239004,0.22200878,26044.0,26043.0,1.43352344]
[1693566239205,0.22200878,26044.0,26043.0,1.61779634]
[1693566239408,0.22200878,26044.0,26043.0,1.3872109]
[1693566239606,0.22200878,26044.0,26043.0,1.61881634]
[1693566239829,0.22200878,26044.0,26043.0,1.61953634]
[1693566240114,0.22200878,26044.0,26043.0,1.3891309]
[1693566240316,0.22200878,26044.0,26043.0,1.61989634]
[1693566240521,0.22200878,26044.0,26043.0,1.61965634]
[1693566240703,0.22200878,26044.0,26043.0,1.61791634]
[1693566240900,0.22219289,26044.0,26043.0,2.62291477]
[1693566241240,0.22219289,26044.0,26043.0,2.62273477]
[1693566241627,0.24544212,26044.0,26043.0,2.62261477]
[1693566241804,0.24544212,26044.0,26043.0,2.62303477]
[1693566242003,0.22219289,26044.0,26043.0,2.62267477]
[1693566242156,0.22219289,26044.0,26043.0,2.39208933]
[1693566242360,0.22219289,26044.0,26043.0,2.39190933]
[1693566242559,0.22219289,26044.0,26043.0,2.39352933]
[1693566242761,0.22219289,26044.0,26043.0,2.53319731]
[1693566242987,0.24552614,26044.0,26043.0,2.53331731]
[1693566243186,0.24552614,26044.0,26043.0,2.53337731]
[1693566243367,0.24552614,26044.0,26043.0,3.45579961]
[1693566243562,0.24552614,26044.0,26043.0,3.46263961]
[1693566243915,0.22219289,26044.0,26043.0,3.46233961]
[1693566244112,0.24552709,26044.0,26043.0,3.55331166]
[1693566244311,0.24552709,26044.0,26043.0,3.55325166]
[1693566244513,0.24552709,26044.0,26043.0,2.96037625]
[1693566244744,0.24552709,26044.0,26043.0,2.96109625]
[1693566244948,0.0303342,26044.0,26043.0,3.46042357]
[1693566245177,0.0303342,26044.0,26043.0,3.58402357]
[1693566245377,0.0303342,26044.0,26043.0,3.76728967]
[1693566245614,0.0303342,26044.0,26043.0,3.08240261]
[1693566245788,0.0303342,26044.0,26043.0,2.96426261]
[1693566245991,0.0303342,26044.0,26043.0,3.65326939]
[1693566246191,0.0303342,26044.0,26043.0,3.77794939]
[1693566246446,0.0303342,26044.0,26043.0,3.77704939]
[1693566246632,0.0303342,26044.0,26043.0,3.68483098]
[1693566246848,0.0303342,26044.0,26043.0,3.68453098]
[1693566247083,0.0303342,26044.0,26043.0,3.68387098]
[1693566247265,0.0303342,26044.0,26043.0,3.68429098]
[1693566247678,0.0303342,26044.0,26043.0,3.68441098]
[1693566248075,0.0303342,26044.0,26043.0,3.68453098]
[1693566248304,0.0303342,26044.0,26043.0,3.68447098]
[1693566248482,0.0303342,26044.0,26043.0,3.68423098]
[1693566248780,0.0303342,26044.0,26043.0,3.68381098]
[1693566249012,0.0303342,26044.0,26043.0,3.68387098]
[1693566249230,0.0303342,26044.0,26043.0,3.68399098]
[1693566249406,0.0303342,26044.0,26043.0,3.68597098]
[1693566249725,0.0303342,26044.0,26043.0,3.68873098]
[1693566250055,0.0303342,26044.0,26043.0,3.69059098]
[1693566250260,0.0303342,26044.0,26043.0,3.69071098]
[1693566250463,0.0303342,26044.0,26043.0,3.68999098]
[1693566250661,0.0379442,26046.0,26043.0,3.68927098]
[1693566250965,0.0379442,26046.0,26045.0,1.641387]
[1693566251111,0.0379442,26046.0,26045.0,1.661387]
[1693566251316,0.0379442,26046.0,26045.0,1.681387]
[1693566251566,0.0199,26047.0,26046.0,0.567108]
[1693566251781,0.23505777,26047.0,26046.0,0.567108]
[1693566253821,0.24805777,26047.0,26046.0,0.568108]
[1693566254973,0.26705777,26047.0,26046.0,0.569108]
[1693566255761,0.032,26047.0,26046.0,0.569108]
[1693566256153,0.24724931,26047.0,26046.0,0.569108]
[1693566256520,0.032,26047.0,26046.0,0.569108]
[1693566258419,0.032,26047.0,26046.0,1.116216]
[1693566259094,0.032,26047.0,26046.0,1.663324]
[1693566259949,0.03115,26047.0,26046.0,1.663324]
[1693566266987,0.03115,26047.0,26046.0,1.683324]
[1693566267971,0.014,26047.0,26046.0,1.682324]
[1693566268173,0.001,26047.0,26046.0,1.683324]
[1693566269014,0.006,26047.0,26046.0,1.684324]
[1693566269466,1.42544205,26051.0,26047.0,0.02]
[1693566269671,0.20995284,26050.0,26048.0,0.547062]
[1693566271037,0.20995284,26050.0,26048.0,1.094128]
[1693566271569,0.20995284,26050.0,26048.0,0.98640494]
[1693566271950,0.24595284,26050.0,26048.0,1.53547094]
[1693566272316,0.20995284,26049.0,26048.0,1.53547094]
[1693566272655,0.20995284,26049.0,26048.0,1.53447094]
[1693566272993,0.20995284,26049.0,26048.0,0.98940494]
[1693566274130,0.20995284,26049.0,26048.0,0.98840494]
[1693566274342,0.20995284,26049.0,26048.0,0.99040494]
[1693566274531,0.20995284,26049.0,26048.0,0.98840494]
[1693566274897,0.21495284,26049.0,26048.0,0.98740494]
[1693566275103,0.21495284,26049.0,26048.0,0.98940494]
[1693566275308,0.21595284,26049.0,26048.0,0.98940494]
[1693566276102,0.21595284,26049.0,26048.0,1.00940494]
[1693566276302,0.21595284,26049.0,26048.0,0.98940494]
[1693566276558,0.21595284,26049.0,26048.0,1.00940494]
[1693566278109,0.21595284,26049.0,26048.0,1.55647094]
[1693566287156,0.21595284,26049.0,26048.0,2.68357664]
[1693566287157,0.006,26049.0,26048.0,2.68357664]
[1693566287416,0.006,26049.0,26048.0,2.68357734]
[1693566287799,0.26751805,26052.0,26048.0,2.68057734]
[1693566288000,0.003,26049.0,26048.0,1.75030565]
[1693566288200,0.006,26049.0,26048.0,2.71656476]
[1693566289352,0.006,26049.0,26048.0,2.83446476]
[1693566289563,0.006,26049.0,26048.0,2.90466476]
[1693566289781,0.003,26049.0,26048.0,2.89090476]
[1693566289999,0.003,26049.0,26048.0,2.89024476]
[1693566290238,0.003,26049.0,26048.0,2.89278476]
[1693566290440,0.003,26049.0,26048.0,2.89242476]
[1693566290643,0.003,26049.0,26048.0,2.89024476]
[1693566290884,0.003,26049.0,26048.0,2.89054476]
[1693566291080,0.006,26049.0,26048.0,2.90466476]
[1693566291265,0.006,26049.0,26048.0,2.90574476]
[1693566291419,0.006,26049.0,26048.0,2.90652476]
[1693566291618,0.006,26049.0,26048.0,2.90646476]
[1693566291801,0.006,26049.0,26048.0,2.90658476]
[1693566292021,0.006,26049.0,26048.0,2.90664476]
[1693566292217,0.006,26049.0,26048.0,2.90778476]
[1693566292419,0.006,26049.0,26048.0,2.90952476]
[1693566292665,0.006,26049.0,26048.0,2.91036476]
[1693566292991,0.006,26049.0,26048.0,2.91144476]
[1693566293299,0.006,26049.0,26048.0,2.91120476]
[1693566293490,0.006,26049.0,26048.0,2.91084476]
[1693566293703,0.006,26049.0,26048.0,2.90988476]
[1693566294102,0.006,26049.0,26048.0,2.91042476]
[1693566294259,0.006,26049.0,26048.0,2.91288476]
[1693566294668,0.006,26049.0,26048.0,2.91336476]
[1693566294862,0.006,26049.0,26048.0,2.91348476]
[1693566295063,0.006,26049.0,26048.0,4.80817754]
[1693566295272,0.1619,26056.0,26055.0,0.02]
[1693566295442,0.1619,26056.0,26055.0,1.26867271]
[1693566295443,0.209961,26056.0,26055.0,1.26867271]
[1693566295954,0.209961,26056.0,26055.0,0.566919]
[1693566296703,0.209961,26056.0,26055.0,0.02]
[1693566296879,0.209961,26056.0,26055.0,0.153649]
[1693566297587,0.214961,26056.0,26055.0,0.154649]
[1693566297978,0.223961,26056.0,26055.0,0.155649]
[1693566303261,0.213961,26056.0,26055.0,0.155649]
[1693566307228,0.107801,26056.0,26055.0,0.155649]
[1693566308191,0.098801,26056.0,26055.0,0.154649]
[1693566308391,0.099801,26056.0,26055.0,0.159649]
[1693566308625,0.098801,26056.0,26055.0,0.153649]
[1693566308820,0.099801,26056.0,26055.0,0.162649]
[1693566309023,0.100801,26056.0,26055.0,0.167649]
[1693566309964,0.099801,26056.0,26055.0,0.158649]
[1693566310195,0.100801,26056.0,26055.0,0.167649]
[1693566313174,0.100801,26056.0,26055.0,0.714568]
[1693566313657,0.100801,26056.0,26055.0,0.167649]
[1693566315463,1.94575,26056.0,26055.0,0.167649]
[1693566315663,2.45073678,26056.0,26055.0,0.014]
[1693566315929,2.53073678,26056.0,26055.0,0.014]
[1693566316627,2.52973678,26056.0,26055.0,0.005]
[1693566316754,2.52973678,26056.0,26047.0,1.34471739]
[1693566316755,0.02,26055.0,26047.0,1.34471739]
[1693566316951,0.1179,26051.0,26050.0,0.15368]
[1693566317175,0.1179,26051.0,26050.0,0.04595501]
[1693566318361,0.38966067,26051.0,26050.0,0.04595501]
[1693566318799,0.39566067,26051.0,26050.0,0.11995501]
[1693566319163,1.275486,26051.0,26050.0,0.11995501]
[1693566319367,2.62183,26051.0,26050.0,0.074]
[1693566319718,2.89070681,26051.0,26050.0,0.074]
[1693566320079,2.88770681,26051.0,26050.0,0.037]
[1693566320300,2.61883,26051.0,26050.0,0.037]
[1693566320872,2.86305573,26051.0,26050.0,0.037]
[1693566321489,2.86005573,26051.0,26046.0,0.153699]
[1693566321697,0.1179,26047.0,26046.0,0.153699]
[1693566323181,0.1209,26047.0,26046.0,0.185699]
[1693566323388,0.1249,26047.0,26046.0,0.221699]
[1693566324424,0.37458732,26047.0,26046.0,0.221699]
[1693566325016,0.39385805,26047.0,26046.0,0.221699]
[1693566325234,0.39385805,26047.0,26046.0,0.068]
[1693566329142,0.39385805,26047.0,26046.0,0.0678668]
[1693566329367,0.96974005,26047.0,26046.0,0.0678668]
[1693566329675,1.87181673,26047.0,26046.0,0.0678668]
[1693566329906,2.0947776,26047.0,26046.0,0.0678668]
[1693566330662,2.0907776,26047.0,26046.0,0.0318668]
[1693566331286,2.0877776,26047.0,26043.0,0.24592741]
[1693566331497,0.1179,26046.0,26043.0,0.24592741]
[1693566331669,1.269724,26046.0,26043.0,0.24592741]
[1693566331866,1.269724,26046.0,26043.0,0.09221841]
[1693566332072,0.01889536,26045.0,26043.0,0.09221841]
[1693566333329,0.01889536,26045.0,26043.0,0.12821841]
[1693566333692,0.23686217,26045.0,26043.0,0.12821841]
[1693566334304,0.23686217,26045.0,26043.0,0.16421841]
[1693566334641,0.23686217,26045.0,26043.0,0.12821841]
[1693566335053,0.23986217,26045.0,26043.0,0.12921841]
[1693566335451,0.24286217,26045.0,26043.0,0.16621841]
[1693566336460,0.25404463,26044.0,26043.0,0.16621841]
[1693566337311,0.25404463,26044.0,26043.0,0.12921841]
[1693566337616,0.25704463,26044.0,26043.0,0.16621841]
[1693566338139,0.25704463,26044.0,26043.0,0.037]
[1693566338335,0.26004463,26044.0,26043.0,0.074]
[1693566340451,0.29413158,26044.0,26043.0,0.074]
[1693566344143,0.29413158,26044.0,26043.0,1.18121902]
[1693566344932,0.29413158,26044.0,26043.0,1.27318574]
[1693566345551,0.29413158,26044.0,26043.0,1.18121902]
[1693566345953,0.29413158,26044.0,26043.0,1.27318574]
[1693566346128,0.29113158,26044.0,26043.0,1.23618574]
[1693566346331,0.29113158,26044.0,26043.0,1.27218574]
[1693566346540,0.29213158,26044.0,26043.0,1.23518574]
[1693566346768,0.29613158,26044.0,26043.0,1.27118574]
[1693566347321,0.29213158,26044.0,26043.0,1.23518574]
[1693566347530,0.29613158,26044.0,26043.0,1.27118574]
[1693566352003,0.29613158,26044.0,26043.0,1.40913582]
[1693566352881,0.29613158,26044.0,26043.0,1.8632693]
[1693566353493,0.29613158,26044.0,26043.0,1.77130258]
[1693566357428,0.29613158,26044.0,26043.0,1.95523602]
[1693566358432,0.29613158,26044.0,26043.0,1.81728594]
[1693566360240,0.04208695,26044.0,26043.0,1.81728594]
[1693566360463,0.04208695,26044.0,26043.0,2.04720275]
[1693566360736,0.04208695,26044.0,26043.0,1.86326931]
[1693566361516,0.04145695,26044.0,26043.0,1.86326931]
[1693566362524,0.04145695,26044.0,26043.0,1.6333525]
[1693566362729,0.04145695,26044.0,26043.0,1.86377054]
[1693566363414,0.04145695,26044.0,26043.0,1.6333525]
[1693566365950,0.04145695,26044.0,26043.0,1.86388289]
[1693566366545,0.04145695,26044.0,26043.0,1.6333525]
[1693566367456,0.04145695,26044.0,26043.0,1.86389118]
[1693566370346,0.04145695,26044.0,26043.0,2.41106218]
[1693566370714,0.23145695,26044.0,26043.0,2.59550504]
[1693566371659,0.23145695,26044.0,26043.0,2.36496636]
[1693566372026,0.23145695,26044.0,26043.0,2.36492271]
[1693566372698,0.23145695,26044.0,26043.0,2.59546139]
[1693566379184,0.23145695,26044.0,26043.0,3.68980339]
[1693566379386,0.23145695,26044.0,26043.0,3.21685239]
[1693566379682,0.23145695,26044.0,26043.0,3.21187239]
[1693566379987,0.23145695,26044.0,26043.0,3.21163239]
[1693566380216,0.23145695,26044.0,26043.0,3.21157239]
[1693566380431,0.23145695,26044.0,26043.0,3.21109239]
[1693566380632,0.23145695,26044.0,26043.0,3.21001239]
[1693566380807,0.23145695,26044.0,26043.0,3.14263239]
[1693566384162,0.23145695,26044.0,26043.0,2.59546139]
[1693566385192,0.23145695,26044.0,26043.0,2.36492271]
[1693566388519,0.23145695,26044.0,26043.0,1.81775171]
[1693566390130,0.23145695,26044.0,26043.0,2.36492271]
[1693566391784,0.42819664,26044.0,26043.0,1.77165529]
[1693566392594,0.42819664,26044.0,26043.0,0.66447992]
[1693566393455,0.22745695,26044.0,26043.0,0.62847992]
[1693566394335,0.22345695,26044.0,26043.0,0.59247992]
[1693566394536,0.22745695,26044.0,26043.0,0.62647992]
[1693566395166,0.23145695,26044.0,26043.0,0.65947992]
[1693566395635,0.22745695,26044.0,26043.0,0.62647992]
[1693566395840,0.23145695,26044.0,26043.0,0.75170554]
[1693566396047,0.23145695,26044.0,26043.0,0.65947992]
[1693566398662,0.23145695,26044.0,26043.0,0.75170297]
[1693566398797,0.23145695,26044.0,26043.0,0.75170224]
[1693566399005,0.23145695,26044.0,26043.0,0.65947992]
[1693566399779,0.23145695,26044.0,26043.0,0.75170174]
[1693566399957,0.43869188,26044.0,26043.0,0.75170174]
[1693566400119,0.43869188,26044.0,26043.0,0.29756826]
[1693566400730,2.28443588,26044.0,26043.0,0.067]
[1693566401373,2.27643588,26044.0,26041.0,0.09222182]
[1693566401577,0.1179,26042.0,26041.0,0.09222182]
[1693566401888,0.693892,26042.0,26041.0,0.09222182]
[1693566402041,0.72682292,26042.0,26041.0,0.09222182]
[1693566402244,1.30281492,26042.0,26041.0,0.09222182]
[1693566402443,1.30281492,26042.0,26040.0,0.09222182]
[1693566402644,1.30681492,26042.0,26041.0,0.031]
[1693566403454,1.88280692,26042.0,26041.0,0.031]
[1693566404113,2.10823093,26042.0,26041.0,0.031]
[1693566405125,2.11223093,26042.0,26041.0,0.062]
[1693566406402,2.30773643,26042.0,26041.0,0.062]
[1693566406618,2.72559839,26042.0,26041.0,0.062]
[1693566408148,2.72159839,26042.0,26041.0,0.031]
[1693566408315,2.72459839,26042.0,26041.0,0.054]
[1693566408511,2.71759839,26042.0,26038.0,0.09222182]
[1693566408711,0.1179,26041.0,26038.0,0.09222182]
[1693566408911,1.152072,26040.0,26037.0,0.53056826]
[1693566409619,1.152072,26040.0,26038.0,0.09222182]
[1693566409827,1.152072,26040.0,26038.0,0.002]
[1693566410239,1.152072,26040.0,26037.0,0.53056826]
[1693566410682,1.152072,26040.0,26038.0,0.002]
[1693566410857,1.152072,26040.0,26037.0,0.53056826]
[1693566411062,0.57168688,26039.0,26035.0,0.09222182]
[1693566411272,0.1179,26036.0,26034.0,0.09222182]
[1693566411516,0.1179,26036.0,26033.0,0.13834644]
[1693566411517,1.152294,26035.0,26033.0,0.23056826]
[1693566411671,1.846341,26035.0,26032.0,0.03097301]
[1693566411976,0.22423591,26034.0,26031.0,0.18420012]
[1693566412322,1.37659091,26034.0,26031.0,0.79226897]
[1693566412469,0.80040791,26034.0,26031.0,0.33798312]
[1693566412661,0.80040791,26034.0,26031.0,0.18420012]
[1693566412861,0.22423591,26034.0,26031.0,1.18590801]
[1693566413103,0.22423591,26034.0,26032.0,0.45428489]
[1693566413307,0.22823591,26034.0,26032.0,0.63848501]
[1693566414110,0.22823591,26034.0,26032.0,0.66648501]
[1693566414314,0.22823591,26034.0,26032.0,0.18420012]
[1693566414527,0.22823591,26034.0,26032.0,0.63847189]
[1693566414696,0.22823591,26034.0,26032.0,0.66647189]
[1693566414901,0.22823591,26034.0,26032.0,0.89701057]
[1693566415099,0.23223591,26034.0,26033.0,0.45427177]
[1693566415700,0.23223591,26034.0,26033.0,0.63847189]
[1693566415905,0.22823591,26034.0,26033.0,0.63847189]
[1693566416130,0.008,26034.0,26033.0,0.65347189]
[1693566416326,0.008,26034.0,26033.0,0.65320015]
[1693566416892,0.004,26034.0,26033.0,0.65320015]
[1693566417099,0.008,26034.0,26033.0,0.68120015]
[1693566418454,0.198,26034.0,26033.0,0.68120015]
[1693566418661,0.198,26034.0,26033.0,0.91111263]
[1693566419929,0.198,26034.0,26033.0,0.72718265]
[1693566423860,0.576147,26035.0,26033.0,0.72718265]
[1693566424191,0.576147,26035.0,26034.0,0.6380777]
[1693566424923,0.580147,26035.0,26034.0,0.6380777]
[1693566425512,0.576147,26035.0,26034.0,0.6380777]
[1693566425689,0.576147,26035.0,26034.0,0.6570777]
[1693566425896,0.580147,26035.0,26034.0,0.6570777]
[1693566426091,0.8314908,26035.0,26034.0,0.54929672]
[1693566426499,0.8354908,26035.0,26034.0,0.54929672]
[1693566426670,0.8354908,26035.0,26034.0,0.7792092]
[1693566427250,0.8354908,26035.0,26034.0,0.70318265]
[1693566427434,0.8314908,26035.0,26034.0,0.70318265]
[1693566427604,0.8354908,26035.0,26034.0,0.73518265]
[1693566428253,1.0254908,26035.0,26034.0,0.73518265]
[1693566428501,0.4493438,26035.0,26034.0,0.73518265]
[1693566428886,0.4453438,26035.0,26034.0,0.71618265]
[1693566429295,0.4413438,26035.0,26034.0,0.68418265]
[1693566429495,0.4493438,26035.0,26034.0,0.27291248]
[1693566429672,0.4493438,26035.0,26034.0,0.72718265]
[1693566429878,0.4453438,26035.0,26034.0,0.70118265]
[1693566430087,0.4493438,26035.0,26034.0,0.72718265]
[1693566430394,0.47810703,26035.0,26034.0,0.70118265]
[1693566430720,0.48210703,26035.0,26034.0,0.72718265]
[1693566431286,0.47810703,26035.0,26034.0,0.71018265]
[1693566431670,0.48210703,26035.0,26034.0,0.72718265]
[1693566432071,0.48210703,26035.0,26034.0,0.71018265]
[1693566432072,0.47810703,26035.0,26034.0,0.71018265]
[1693566432563,0.48210703,26035.0,26034.0,0.72718265]
[1693566433416,0.23076323,26035.0,26034.0,0.72718265]
[1693566434001,0.23076323,26035.0,26034.0,0.49727017]
[1693566437863,0.23076323,26035.0,26034.0,0.49727017]
[1693566443350,0.23076323,26035.0,26034.0,2.25725317]
[1693566443550,0.23076323,26035.0,26034.0,2.36719317]
[1693566443749,0.23076323,26035.0,26034.0,2.64530815]
[1693566443956,0.23076323,26035.0,26034.0,2.36653317]
[1693566444160,0.23076323,26035.0,26034.0,2.64068815]
[1693566444377,0.198,26035.0,26034.0,2.64068815]
[1693566444605,0.198,26035.0,26034.0,2.63948815]
[1693566444805,0.22996968,26035.0,26034.0,2.36323317]
[1693566444978,0.22996968,26035.0,26034.0,2.64032815]
[1693566445314,0.22996968,26035.0,26034.0,2.63966815]
[1693566445444,0.22996968,26035.0,26034.0,2.63906815]
[1693566445651,0.22996968,26035.0,26034.0,2.63852815]
[1693566445859,0.22996968,26035.0,26034.0,2.65148815]
[1693566446061,0.22996968,26035.0,26034.0,2.65652815]
[1693566446271,0.22996968,26035.0,26034.0,2.65802815]
[1693566446609,0.198,26035.0,26034.0,2.65382815]
[1693566446786,0.198,26035.0,26034.0,2.65094815]
[1693566446989,0.198,26035.0,26034.0,2.65112815]
[1693566447393,0.198,26035.0,26034.0,2.65070815]
[1693566447621,0.198,26035.0,26034.0,2.65082815]
[1693566447780,0.198,26035.0,26034.0,2.65076815]
[1693566447983,0.198,26035.0,26034.0,2.64866815]
[1693566448431,0.198,26035.0,26034.0,2.64758815]
[1693566448631,0.198,26035.0,26034.0,2.64392815]
[1693566448833,0.2361334,26035.0,26034.0,2.64632815]
[1693566449033,0.2361334,26035.0,26034.0,2.64614815]
[1693566449396,0.198,26035.0,26034.0,2.64626815]
[1693566449531,0.198,26035.0,25412.0,0.00027412]
[1693566449734,1.26231235,26034.0,26014.0,1.14539336]
[1693566449937,0.31296184,26034.0,26014.0,2.14539336]
[1693566450343,0.09174706,26032.0,26014.0,2.14539336]
[1693566450546,0.15483471,26031.0,26014.0,2.29914936]
[1693566450775,0.27766001,26030.0,26014.0,3.24207761]
[1693566450988,0.15483471,26029.0,26014.0,2.17047936]
[1693566451499,0.24658177,26029.0,26014.0,2.22696584]
[1693566452352,0.15483471,26029.0,26014.0,2.22696584]
[1693566453152,0.74016,26028.0,26014.0,2.22696584]
[1693566453367,0.15483471,26027.0,26014.0,2.22796584]
[1693566453563,0.37678521,26027.0,26014.0,2.22796584]
[1693566453771,0.64098,26026.0,26014.0,2.22796584]
[1693566453970,0.15483471,26025.0,26014.0,2.22796584]
[1693566454364,0.3618,26024.0,26014.0,2.22796584]
[1693566454562,0.15483471,26023.0,26014.0,2.22796584]
[1693566454765,0.15483471,26022.0,26014.0,2.22696584]
[1693566454968,0.15483471,26021.0,26014.0,2.20788894]
[1693566455313,0.15483471,26020.0,26014.0,1.30688894]
[1693566455516,0.15483471,26019.0,26014.0,1.30788894]
[1693566455938,0.25569471,26019.0,26014.0,1.30688894]
[1693566456153,0.08286,26018.0,26014.0,1.30788894]
[1693566456375,0.0852,26018.0,26014.0,1.30688894]
[1693566456556,0.08508,26018.0,26014.0,1.30688894]
[1693566456756,0.004,26025.0,26014.0,1.30788894]
[1693566456757,0.003,26019.0,26014.0,1.30788894]
[1693566457194,0.0729,26017.0,26014.0,1.30788894]